[Event "7th Iberoamerican-ch 2019"]
[Site "Linares"]
[Date "2019.08.14"]
[Round "5.24"]
[White "Merario Alarcon, Andres"]
[Black "Lacayo, Rene"]
[Result "1-0"]
[ECO "E15"]
[WhiteElo "2392"]
[BlackElo "2274"]
[Annotator "NA"]
[PlyCount "49"]
[EventDate "2019.08.10"]
[EventType "swiss"]
[EventCountry "ESP"]
[SourceTitle "playchess.com"]
[Source "ChessBase"]
[SourceQuality "1"]
[TimeControl "5400+30"]

1. d4 {[%emt 0:00:00]} Nf6 {[%emt 0:00:51]} 2. c4 {[%emt 0:00:00]} e6 {[%emt 0:00:03]} 3. Nf3 {[%emt 0:00:00]} b6 {[%emt 0:00:22]} 4. g3 {[%emt 0:00:06]} Ba6 {[%emt 0:00:19]} 5. Qc2 {[%emt 0:01:20]} d5 {[%emt 0:06:48]} 6. cxd5 {[%emt 0:01:00]} exd5 {[%emt 0:00:01]} 7. Bg2 {[%emt 0:01:23]} Bd6 {[%emt 0:04:03]} 8. Nc3 {[%emt 0:01:39]} O-O {[%emt 0:02:43]} 9. O-O {[%emt 0:02:39]} Nbd7 {[%emt 0:09:50]} 10. Nh4 {[%emt 0:06:48]} c6 {[%emt 0:19:59]} 11. Nf5 {[%emt 0:00:54]} Bc7 {[%emt 0:00:25]} 12. Bg5 {[%emt 0:07:36]} h6 {[%emt 0:06:27]} 13. Bh4 {[%emt 0:00:32]} Re8 {[%emt 0:00:32]} 14. Rfe1 {[%emt 0:06:17]} Bb7 {[%emt 0:04:09]} 15. e4 {[%emt 0:02:05]} Qb8 {[%emt 0:06:08]} 16. e5 {[%emt 0:04:07]} Nh7 {[%emt 0:00:51]} 17. Ne7+ {[%emt 0:12:53]} Kh8 {[%emt 0:00:05]} 18. Qf5 {[%emt 0:00:32]} Rxe7 {[%emt 0:22:47]} 19. Bxe7 {[%emt 0:00:19]} Qe8 {[%emt 0:00:41]} 20. Bd6 {[%emt 0:02:40]} Bd8 {[%emt 0:00:42]} 21. e6 {[%emt 0:04:24]} fxe6 {[%emt 0:00:03]} 22. Rxe6 {[%emt 0:00:12]} Qg8 {[%emt 0:00:15]} 23. Rae1 {[%emt 0:01:06]} Ndf6 {[%emt 0:00:23]} 24. Qg6 {[%emt 0:00:24]} Bc8 {[%emt 0:01:21]} 25. Re8 {[%emt 0:00:19]} 1-0

[Event "7th Iberoamerican-ch 2019"]
[Site "Linares"]
[Date "2019.08.14"]
[Round "5.25"]
[White "Rodriguez Perez, Angel Mariano"]
[Black "Teran Alvarez, Ismael"]
[Result "0-1"]
[ECO "B07"]
[WhiteElo "2223"]
[BlackElo "2392"]
[Annotator "NA"]
[PlyCount "118"]
[EventDate "2019.08.10"]
[EventType "swiss"]
[EventCountry "ESP"]
[SourceTitle "playchess.com"]
[Source "ChessBase"]
[SourceQuality "1"]
[TimeControl "5400+30"]

1. e4 {[%emt 0:00:00]} d6 {[%emt 0:00:02]} 2. d4 {[%emt 0:00:00]} Nf6 {[%emt 0:00:06]} 3. Nc3 {[%emt 0:00:01]} c6 {[%emt 0:00:08]} 4. Nf3 {[%emt 0:00:25]} Bg4 {[%emt 0:00:25]} 5. Be2 {[%emt 0:00:45]} e6 {[%emt 0:00:21]} 6. h3 {[%emt 0:00:21]} Bh5 {[%emt 0:00:50]} 7. O-O {[%emt 0:01:38]} Be7 {[%emt 0:04:14]} 8. Nd2 {[%emt 0:01:31]} Bxe2 {[%emt 0:00:52]} 9. Qxe2 {[%emt 0:00:07]} d5 {[%emt 0:00:41]} 10. exd5 {[%emt 0:00:52]} cxd5 {[%emt 0:01:28]} 11. Qb5+ {[%emt 0:00:37]} Nc6 {[%emt 0:01:22]} 12. Nf3 {[%emt 0:02:22]} a6 {[%emt 0:04:08]} 13. Qe2 {[%emt 0:04:06]} O-O {[%emt 0:01:22]} 14. Nd1 {[%emt 0:02:12]} b5 {[%emt 0:01:10]} 15. Ne3 {[%emt 0:01:02]} Qb6 {[%emt 0:01:43]} 16. Rd1 {[%emt 0:01:04]} b4 {[%emt 0:13:02]} 17. Nf1 {[%emt 0:11:52]} Qb5 {[%emt 0:02:49]} 18. Ng3 {[%emt 0:03:29]} Rfc8 {[%emt 0:03:08]} 19. c3 {[%emt 0:16:58]} bxc3 {[%emt 0:16:59]} 20. Qxb5 {[%emt 0:00:51]} axb5 {[%emt 0:00:04]} 21. bxc3 {[%emt 0:00:15]} Ra4 {[%emt 0:00:30]} 22. Bd2 {[%emt 0:01:08]} Bd6 {[%emt 0:01:26]} 23. Rdb1 {[%emt 0:05:02]} Bxg3 {[%emt 0:09:49]} 24. fxg3 {[%emt 0:00:11]} Na7 {[%emt 0:00:05]} 25. Rb3 {[%emt 0:01:27]} Ne4 {[%emt 0:00:22]} 26. Be1 {[%emt 0:00:15]} f6 {[%emt 0:00:29]} 27. Kf1 {[%emt 0:02:58]} h5 {[%emt 0:07:03]} 28. Ng1 {[%emt 0:06:32]} Kf7 {[%emt 0:04:25]} 29. Ne2 {[%emt 0:00:08]} e5 {[%emt 0:01:28]} 30. Kg1 {[%emt 0:04:48]} Rc6 {[%emt 0:03:48]} 31. Bf2 {[%emt 0:03:20]} Nd2 {[%emt 0:07:53]} 32. Rb2 {[%emt 0:00:10]} Nc4 {[%emt 0:00:01]} 33. Rb3 {[%emt 0:00:05]} e4 {[%emt 0:03:27]} 34. Nf4 {[%emt 0:00:29]} Nb6 {[%emt 0:00:29]} 35. Nxh5 {[%emt 0:00:45]} Rac4 {[%emt 0:00:20]} 36. Be1 {[%emt 0:01:12]} g5 {[%emt 0:01:17]} 37. g4 {[%emt 0:01:27]} Na4 {[%emt 0:00:32]} 38. Ng3 {[%emt 0:01:46]} Nxc3 {[%emt 0:00:21]} 39. Bxc3 {[%emt 0:02:28]} Rxc3 {[%emt 0:00:02]} 40. Rxc3 {[%emt 0:00:04]} Rxc3 {[%emt 0:00:06]} 41. Nf5 {[%emt 0:00:12]} b4 {[%emt 0:01:29]} 42. Rb1 {[%emt 0:02:43]} Nc6 {[%emt 0:00:29]} 43. Rb2 {[%emt 0:00:17]} Ke6 {[%emt 0:02:17]} 44. g3 {[%emt 0:04:26]} Rd3 {[%emt 0:00:58]} 45. h4 Nxd4 {[%emt 0:00:16]} 46. Nxd4+ {[%emt 0:02:07]} Rxd4 {[%emt 0:00:01]} 47. h5 {[%emt 0:00:12]} Rc4 {[%emt 0:01:47]} 48. h6 {[%emt 0:01:05]} Kf7 {[%emt 0:00:59]} 49. a3 {[%emt 0:00:13]} bxa3 {[%emt 0:01:11]} 50. Rb7+ {[%emt 0:00:05]} Kg8 {[%emt 0:03:00]} 51. Ra7 {[%emt 0:00:06]} Rc3 {[%emt 0:00:10]} 52. Kf2 {[%emt 0:00:26]} d4 {[%emt 0:00:16]} 53. Ke2 {[%emt 0:00:48]} Rxg3 {[%emt 0:00:38]} 54. Ra4 {[%emt 0:00:16]} d3+ {[%emt 0:01:07]} 55. Kf2 {[%emt 0:00:21]} Rf3+ {[%emt 0:00:13]} 56. Ke1 {[%emt 0:00:23]} Kh7 {[%emt 0:00:08]} 57. Rxe4 {[%emt 0:00:22]} a2 {[%emt 0:00:18]} 58. Ra4 {[%emt 0:00:06]} Rh3 {[%emt 0:00:06]} 59. Kd2 {[%emt 0:00:25]} Rh1 {[%emt 0:00:10]} 0-1

[Event "7th Iberoamerican-ch 2019"]
[Site "Linares"]
[Date "2019.08.14"]
[Round "5.27"]
[White "Mieles Palau, Daniel"]
[Black "Calzetta Ruiz, Monica"]
[Result "1/2-1/2"]
[ECO "A36"]
[WhiteElo "2384"]
[BlackElo "2257"]
[Annotator "NA"]
[PlyCount "75"]
[EventDate "2019.08.10"]
[EventType "swiss"]
[EventCountry "ESP"]
[SourceTitle "playchess.com"]
[Source "ChessBase"]
[SourceQuality "1"]
[TimeControl "5400+30"]

1. c4 {[%emt 0:00:00]} c5 {[%emt 0:02:13]} 2. Nc3 {[%emt 0:00:00]} Nc6 {[%emt 0:00:08]} 3. g3 {[%emt 0:00:00]} Nf6 {[%emt 0:00:27]} 4. Bg2 {[%emt 0:00:20]} e5 {[%emt 0:00:20]} 5. Nf3 {[%emt 0:06:17]} Be7 {[%emt 0:00:22]} 6. d3 {[%emt 0:03:01]} O-O {[%emt 0:01:25]} 7. O-O {[%emt 0:01:05]} d6 {[%emt 0:00:58]} 8. a3 {[%emt 0:00:06]} h6 {[%emt 0:00:41]} 9. h3 {[%emt 0:13:20]} Be6 {[%emt 0:01:22]} 10. Rb1 {[%emt 0:01:56]} Qd7 {[%emt 0:06:34]} 11. Kh2 {[%emt 0:00:06]} Rae8 {[%emt 0:20:34]} 12. b4 {[%emt 0:00:34]} b6 {[%emt 0:00:39]} 13. b5 {[%emt 0:06:17]} Na5 {[%emt 0:06:45]} 14. e4 {[%emt 0:02:05]} Nh7 {[%emt 0:02:31]} 15. Bd2 {[%emt 0:15:27]} f5 {[%emt 0:01:06]} 16. exf5 {[%emt 0:01:43]} Bxf5 {[%emt 0:00:14]} 17. Qe2 {[%emt 0:00:49]} Bd8 {[%emt 0:15:25]} 18. Nh4 {[%emt 0:10:13]} Bxh4 {[%emt 0:00:52]} 19. gxh4 {[%emt 0:00:04]} Qe7 {[%emt 0:01:54]} 20. Ne4 {[%emt 0:04:08]} Nb7 {[%emt 0:01:51]} 21. Ng3 {[%emt 0:05:09]} Bc8 {[%emt 0:00:54]} 22. Qh5 {[%emt 0:03:17]} Nd8 {[%emt 0:10:50]} 23. Bd5+ {[%emt 0:01:49]} Kh8 {[%emt 0:00:24]} 24. Ne4 {[%emt 0:00:05]} Ne6 {[%emt 0:06:59]} 25. Rg1 {[%emt 0:02:35]} Nf4 {[%emt 0:00:15]} 26. Bxf4 {[%emt 0:00:18]} Rxf4 {[%emt 0:00:06]} 27. Nxd6 {[%emt 0:02:15]} Ref8 {[%emt 0:03:29]} 28. Nxc8 {[%emt 0:00:33]} Rxc8 {[%emt 0:00:17]} 29. Rbe1 {[%emt 0:02:07]} Rxf2+ {[%emt 0:02:21]} 30. Rg2 {[%emt 0:04:16]} Rxg2+ {[%emt 0:00:22]} 31. Kxg2 {[%emt 0:00:15]} Rf8 {[%emt 0:02:10]} 32. Re3 {[%emt 0:05:24]} e4 {[%emt 0:01:57]} 33. Rxe4 {[%emt 0:00:15]} Qf6 {[%emt 0:03:09]} 34. Qe2 {[%emt 0:00:22]} Qf5 {[%emt 0:00:30]} 35. Be6 {[%emt 0:03:46]} Qf6 {[%emt 0:00:06]} 36. Bd5 {[%emt 0:02:59]} Qf5 {[%emt 0:00:04]} 37. Be6 {[%emt 0:02:38]} Qf6 {[%emt 0:00:02]} 38. Bd5 {[%emt 0:00:45]} 1/2-1/2

[Event "7th Iberoamerican-ch 2019"]
[Site "Linares"]
[Date "2019.08.14"]
[Round "5.29"]
[White "Matnadze, Ana"]
[Black "Jimenez Bernal, Francisco"]
[Result "1/2-1/2"]
[ECO "E06"]
[WhiteElo "2363"]
[BlackElo "2222"]
[Annotator "NA"]
[PlyCount "53"]
[EventDate "2019.08.10"]
[EventType "swiss"]
[EventCountry "ESP"]
[SourceTitle "playchess.com"]
[Source "ChessBase"]
[SourceQuality "1"]
[TimeControl "5400+30"]

1. Nf3 {[%emt 0:00:00]} Nf6 {[%emt 0:00:00]} 2. c4 {[%emt 0:00:00]} e6 {[%emt 0:00:00]} 3. g3 {[%emt 0:00:00]} d5 {[%emt 0:01:11]} 4. d4 {[%emt 0:00:13]} Be7 {[%emt 0:00:29]} 5. Bg2 {[%emt 0:00:26]} O-O {[%emt 0:00:27]} 6. Nc3 {[%emt 0:00:09]} dxc4 {[%emt 0:02:03]} 7. Ne5 {[%emt 0:00:07]} Nc6 {[%emt 0:01:27]} 8. Nxc6 {[%emt 0:02:35]} bxc6 {[%emt 0:00:08]} 9. Bxc6 {[%emt 0:00:04]} Rb8 {[%emt 0:00:25]} 10. O-O {[%emt 0:00:21]} Nd5 {[%emt 0:08:22]} 11. Qa4 {[%emt 0:07:04]} Nb4 {[%emt 0:14:54]} 12. Bg2 {[%emt 0:01:59]} Rb6 {[%emt 0:20:47]} 13. a3 {[%emt 0:05:54]} Ra6 {[%emt 0:04:43]} 14. Qd1 {[%emt 0:05:41]} Nd5 {[%emt 0:00:09]} 15. e4 {[%emt 0:01:01]} Nxc3 {[%emt 0:00:29]} 16. bxc3 {[%emt 0:00:01]} Rb6 {[%emt 0:04:50]} 17. Qe2 {[%emt 0:05:20]} Ba6 {[%emt 0:00:19]} 18. Rd1 {[%emt 0:15:18]} Qb8 {[%emt 0:03:30]} 19. Qg4 {[%emt 0:02:15]} Rd8 {[%emt 0:02:03]} 20. Bh6 {[%emt 0:01:12]} Bf8 {[%emt 0:00:10]} 21. Bg5 {[%emt 0:00:39]} Re8 {[%emt 0:00:04]} 22. a4 {[%emt 0:02:57]} Rb3 {[%emt 0:01:17]} 23. Bd2 {[%emt 0:01:03]} Ra3 {[%emt 0:01:55]} 24. Rab1 {[%emt 0:02:04]} Rb3 {[%emt 0:00:06]} 25. Ra1 {[%emt 0:00:24]} Ra3 {[%emt 0:00:07]} 26. Rab1 {[%emt 0:06:39]} Rb3 {[%emt 0:00:05]} 27. Ra1 {[%emt 0:01:21]} 1/2-1/2

[Event "7th Iberoamerican-ch 2019"]
[Site "Linares"]
[Date "2019.08.14"]
[Round "5.30"]
[White "Sos Andreu, Eric"]
[Black "Romero Berruezo, Francisco"]
[Result "1/2-1/2"]
[ECO "E91"]
[WhiteElo "2354"]
[BlackElo "2161"]
[Annotator "NA"]
[PlyCount "69"]
[EventDate "2019.08.10"]
[EventType "swiss"]
[EventCountry "ESP"]
[SourceTitle "playchess.com"]
[Source "ChessBase"]
[SourceQuality "1"]
[TimeControl "5400+30"]

1. d4 {[%emt 0:00:00]} Nf6 {[%emt 0:00:02]} 2. c4 {[%emt 0:00:00]} d6 {[%emt 0:00:42]} 3. Nf3 {[%emt 0:00:00]} g6 {[%emt 0:00:16]} 4. Nc3 {[%emt 0:00:19]} Bg7 {[%emt 0:00:25]} 5. e4 {[%emt 0:00:08]} O-O {[%emt 0:00:15]} 6. Be2 {[%emt 0:00:04]} c5 {[%emt 0:00:28]} 7. d5 {[%emt 0:00:22]} e5 {[%emt 0:00:19]} 8. O-O {[%emt 0:00:24]} Ne8 {[%emt 0:00:29]} 9. Ne1 {[%emt 0:02:01]} f5 {[%emt 0:01:39]} 10. Nd3 {[%emt 0:00:53]} Nf6 {[%emt 0:02:06]} 11. exf5 {[%emt 0:03:23]} gxf5 {[%emt 0:03:36]} 12. f4 {[%emt 0:00:23]} e4 {[%emt 0:01:32]} 13. Nf2 {[%emt 0:00:06]} Re8 {[%emt 0:12:08]} 14. Be3 {[%emt 0:00:33]} Na6 {[%emt 0:02:52]} 15. a3 {[%emt 0:05:30]} Nc7 {[%emt 0:00:44]} 16. Rc1 {[%emt 0:01:15]} Bd7 {[%emt 0:02:03]} 17. h3 {[%emt 0:03:40]} Kh8 {[%emt 0:08:31]} 18. g4 {[%emt 0:04:15]} Ng8 {[%emt 0:10:45]} 19. g5 {[%emt 0:03:22]} Ne7 {[%emt 0:02:15]} 20. Kh2 {[%emt 0:06:45]} b5 {[%emt 0:03:05]} 21. b4 {[%emt 0:05:16]} cxb4 {[%emt 0:05:21]} 22. axb4 {[%emt 0:00:51]} bxc4 {[%emt 0:00:16]} 23. Bd4 {[%emt 0:01:37]} Ng6 {[%emt 0:00:47]} 24. Bxg7+ {[%emt 0:00:40]} Kxg7 {[%emt 0:00:05]} 25. Qd4+ {[%emt 0:05:18]} Kg8 {[%emt 0:01:00]} 26. Nfd1 {[%emt 0:00:39]} a5 {[%emt 0:01:21]} 27. bxa5 {[%emt 0:00:43]} Rxa5 {[%emt 0:00:10]} 28. Ne3 {[%emt 0:00:04]} Nb5 {[%emt 0:02:12]} 29. Nxb5 {[%emt 0:00:15]} Rxb5 {[%emt 0:00:20]} 30. Nxc4 {[%emt 0:02:06]} Rb4 {[%emt 0:02:29]} 31. Bh5 {[%emt 0:05:23]} Bb5 {[%emt 0:03:18]} 32. Be2 {[%emt 0:00:14]} Bxc4 {[%emt 0:00:27]} 33. Rxc4 {[%emt 0:00:12]} Rxc4 {[%emt 0:00:12]} 34. Qxc4 {[%emt 0:00:37]} Qe7 {[%emt 0:04:57]} 35. Qc6 {[%emt 0:01:28]} 1/2-1/2

[Event "7th Iberoamerican-ch 2019"]
[Site "Linares"]
[Date "2019.08.14"]
[Round "5.31"]
[White "Gavarrete, Nahun"]
[Black "Gomez Barrera, Javiera Belen"]
[Result "1-0"]
[ECO "A05"]
[WhiteElo "2349"]
[BlackElo "2156"]
[Annotator "NA"]
[PlyCount "109"]
[EventDate "2019.08.10"]
[EventType "swiss"]
[EventCountry "ESP"]
[SourceTitle "playchess.com"]
[Source "ChessBase"]
[SourceQuality "1"]
[TimeControl "5400+30"]

1. Nf3 {[%emt 0:01:32]} Nf6 {[%emt 0:00:00]} 2. c4 {[%emt 0:00:05]} g6 {[%emt 0:00:00]} 3. b3 {[%emt 0:00:08]} Bg7 {[%emt 0:00:10]} 4. Bb2 {[%emt 0:00:04]} d6 {[%emt 0:01:13]} 5. g3 {[%emt 0:00:39]} O-O {[%emt 0:05:05]} 6. Bg2 {[%emt 0:00:08]} e5 {[%emt 0:00:51]} 7. d3 {[%emt 0:03:49]} Re8 {[%emt 0:03:32]} 8. Nbd2 {[%emt 0:03:01]} Nc6 {[%emt 0:01:26]} 9. O-O {[%emt 0:00:13]} Bf5 {[%emt 0:05:13]} 10. e4 {[%emt 0:03:33]} Bg4 {[%emt 0:09:31]} 11. h3 {[%emt 0:00:04]} Bxf3 {[%emt 0:01:23]} 12. Nxf3 {[%emt 0:01:07]} Nd7 {[%emt 0:01:00]} 13. a3 {[%emt 0:07:58]} a5 {[%emt 0:03:33]} 14. Bc3 {[%emt 0:02:09]} Nc5 {[%emt 0:13:15]} 15. b4 {[%emt 0:00:29]} Ne6 {[%emt 0:03:32]} 16. h4 {[%emt 0:08:51]} Qb8 {[%emt 0:16:06]} 17. b5 {[%emt 0:31:01]} Ncd8 {[%emt 0:01:45]} 18. Rb1 {[%emt 0:04:59]} Nc5 {[%emt 0:15:36]} 19. Re1 {[%emt 0:01:51]} Nde6 {[%emt 0:01:10]} 20. Qd2 {[%emt 0:06:59]} a4 {[%emt 0:01:20]} 21. h5 {[%emt 0:01:45]} Nb3 {[%emt 0:03:08]} 22. Qe3 {[%emt 0:01:41]} Qd8 {[%emt 0:06:42]} 23. hxg6 {[%emt 0:01:42]} hxg6 {[%emt 0:00:11]} 24. Nd2 {[%emt 0:00:52]} Nbd4 {[%emt 0:01:56]} 25. Rb2 {[%emt 0:05:32]} Kh7 {[%emt 0:01:43]} 26. Reb1 {[%emt 0:00:07]} Bh6 {[%emt 0:01:28]} 27. Qe1 {[%emt 0:00:03]} Qf6 {[%emt 0:00:36]} 28. Qd1 {[%emt 0:00:15]} Rh8 {[%emt 0:02:01]} 29. Nf3 {[%emt 0:05:30]} Nxf3+ {[%emt 0:00:32]} 30. Qxf3 {[%emt 0:01:26]} Qe7 31. Qe2 {[%emt 0:04:18]} Bg7 {[%emt 0:00:52]} 32. Bf3 {[%emt 0:00:31]} Kg8 {[%emt 0:00:24]} 33. Kg2 {[%emt 0:00:16]} Qg5 {[%emt 0:00:39]} 34. Qe3 {[%emt 0:02:14]} Qf6 {[%emt 0:00:33]} 35. Rh1 {[%emt 0:01:49]} Rxh1 {[%emt 0:00:28]} 36. Kxh1 {[%emt 0:00:01]} Kf8 {[%emt 0:00:33]} 37. Kg2 {[%emt 0:00:12]} Ke7 {[%emt 0:00:28]} 38. Rb1 {[%emt 0:00:18]} b6 {[%emt 0:00:34]} 39. Rh1 {[%emt 0:00:29]} Rh8 {[%emt 0:00:27]} 40. Rxh8 {[%emt 0:00:06]} Bxh8 {[%emt 0:00:01]} 41. Bd1 {[%emt 0:00:17]} Nc5 {[%emt 0:00:57]} 42. f4 {[%emt 0:01:07]} Qe6 {[%emt 0:00:31]} 43. fxe5 dxe5 {[%emt 0:00:34]} 44. Bb4 {[%emt 0:00:04]} Qd6 {[%emt 0:00:28]} 45. Bxa4 {[%emt 0:00:32]} Bf6 {[%emt 0:00:31]} 46. Bd1 {[%emt 0:00:42]} Qd4 {[%emt 0:00:29]} 47. Qxd4 {[%emt 0:00:41]} exd4 {[%emt 0:00:01]} 48. Bxc5+ {[%emt 0:00:47]} bxc5 {[%emt 0:00:25]} 49. a4 {[%emt 0:00:02]} Kd6 {[%emt 0:01:03]} 50. a5 {[%emt 0:01:19]} c6 {[%emt 0:00:29]} 51. e5+ {[%emt 0:01:03]} Bxe5 {[%emt 0:00:14]} 52. b6 {[%emt 0:00:07]} Kd7 {[%emt 0:00:34]} 53. a6 {[%emt 0:00:06]} Kc8 {[%emt 0:00:35]} 54. a7 {[%emt 0:00:15]} Kb7 {[%emt 0:00:04]} 55. Bf3 {[%emt 0:00:11]} 1-0

[Event "7th Iberoamerican-ch 2019"]
[Site "Linares"]
[Date "2019.08.14"]
[Round "5.32"]
[White "Blanco Acevedo, Cristobal Jose"]
[Black "Diaz Mino, Daniel"]
[Result "1/2-1/2"]
[ECO "A57"]
[WhiteElo "2342"]
[BlackElo "1888"]
[Annotator "NA"]
[PlyCount "126"]
[EventDate "2019.08.10"]
[EventType "swiss"]
[EventCountry "ESP"]
[SourceTitle "playchess.com"]
[Source "ChessBase"]
[SourceQuality "1"]
[TimeControl "5400+30"]

1. d4 {[%emt 0:00:00]} Nf6 {[%emt 0:00:00]} 2. c4 {[%emt 0:00:00]} c5 {[%emt 0:00:00]} 3. d5 {[%emt 0:00:02]} b5 {[%emt 0:00:05]} 4. cxb5 {[%emt 0:00:07]} a6 {[%emt 0:00:10]} 5. b6 {[%emt 0:00:05]} Qxb6 {[%emt 0:00:57]} 6. Nc3 {[%emt 0:00:05]} g6 {[%emt 0:01:15]} 7. e4 {[%emt 0:00:09]} d6 {[%emt 0:00:13]} 8. Nf3 {[%emt 0:00:23]} Bg7 {[%emt 0:01:42]} 9. Bc4 {[%emt 0:00:09]} O-O {[%emt 0:11:55]} 10. O-O {[%emt 0:00:12]} Nbd7 {[%emt 0:05:47]} 11. a4 {[%emt 0:02:18]} a5 {[%emt 0:02:08]} 12. Re1 {[%emt 0:02:47]} Ba6 {[%emt 0:02:10]} 13. Nb5 {[%emt 0:00:13]} Ng4 {[%emt 0:00:37]} 14. Ra3 {[%emt 0:00:49]} Nge5 {[%emt 0:00:21]} 15. Bf1 {[%emt 0:00:39]} Rfb8 {[%emt 0:03:35]} 16. Nd2 {[%emt 0:02:44]} Nf6 {[%emt 0:12:05]} 17. h3 {[%emt 0:05:20]} Ne8 {[%emt 0:02:10]} 18. f4 {[%emt 0:01:52]} Nd7 {[%emt 0:00:44]} 19. Nc4 {[%emt 0:00:44]} Qd8 {[%emt 0:00:18]} 20. e5 {[%emt 0:01:25]} dxe5 {[%emt 0:18:56]} 21. fxe5 {[%emt 0:01:37]} Nb6 {[%emt 0:00:29]} 22. Nxa5 {[%emt 0:10:52]} Qxd5 {[%emt 0:00:49]} 23. Qxd5 {[%emt 0:00:35]} Nxd5 {[%emt 0:00:02]} 24. Nc6 {[%emt 0:01:20]} Rc8 {[%emt 0:01:43]} 25. Bc4 {[%emt 0:03:37]} Bb7 {[%emt 0:08:44]} 26. Nca7 {[%emt 0:03:28]} Rd8 {[%emt 0:01:48]} 27. a5 {[%emt 0:00:37]} Nb4 {[%emt 0:00:52]} 28. Rc3 {[%emt 0:08:20]} Nc7 {[%emt 0:03:45]} 29. Nxc7 {[%emt 0:02:41]} Rxa7 {[%emt 0:00:10]} 30. Bg5 {[%emt 0:00:18]} Bc6 {[%emt 0:04:07]} 31. Bxe7 {[%emt 0:02:32]} Rd2 {[%emt 0:00:43]} 32. Bxc5 {[%emt 0:00:13]} Rxg2+ {[%emt 0:00:38]} 33. Kf1 {[%emt 0:00:08]} Rxc7 {[%emt 0:00:37]} 34. Bxb4 {[%emt 0:00:47]} Rxb2 {[%emt 0:02:23]} 35. Bd6 {[%emt 0:00:41]} Rd7 {[%emt 0:02:07]} 36. Rb3 {[%emt 0:04:35]} Rxb3 {[%emt 0:06:32]} 37. Bxb3 {[%emt 0:00:11]} Bf8 {[%emt 0:00:44]} 38. Rd1 {[%emt 0:00:33]} Bxd6 {[%emt 0:02:17]} 39. Rxd6 {[%emt 0:00:27]} Bb5+ {[%emt 0:01:02]} 40. Kf2 {[%emt 0:00:15]} Ra7 {[%emt 0:01:16]} 41. Rf6 {[%emt 0:01:39]} Be8 {[%emt 0:01:22]} 42. a6 {[%emt 0:00:33]} Bb5 {[%emt 0:01:54]} 43. Ke3 {[%emt 0:02:34]} Bxa6 {[%emt 0:01:12]} 44. Bxf7+ {[%emt 0:00:19]} Rxf7 {[%emt 0:00:33]} 45. Rxa6 {[%emt 0:00:03]} Re7 {[%emt 0:00:37]} 46. Ke4 {[%emt 0:00:04]} Kf7 {[%emt 0:00:45]} 47. Rf6+ {[%emt 0:00:59]} Kg7 {[%emt 0:00:03]} 48. Rf3 {[%emt 0:01:07]} Rf7 {[%emt 0:00:40]} 49. Rc3 {[%emt 0:00:28]} Ra7 {[%emt 0:00:37]} 50. Kd5 {[%emt 0:00:27]} Kf7 {[%emt 0:00:37]} 51. Rc6 {[%emt 0:00:32]} Ke7 {[%emt 0:00:21]} 52. Re6+ {[%emt 0:00:06]} Kf7 {[%emt 0:00:12]} 53. Rc6 {[%emt 0:01:21]} Ke7 {[%emt 0:00:13]} 54. Rc5 {[%emt 0:00:02]} Rd7+ {[%emt 0:00:18]} 55. Ke4 {[%emt 0:00:01]} Rd1 {[%emt 0:00:43]} 56. Rc7+ {[%emt 0:00:44]} Rd7 {[%emt 0:00:08]} 57. Rc6 {[%emt 0:01:54]} Rd1 {[%emt 0:00:08]} 58. Kf4 {[%emt 0:00:09]} Rf1+ {[%emt 0:00:27]} 59. Kg5 {[%emt 0:02:00]} Rf5+ {[%emt 0:00:25]} 60. Kg4 {[%emt 0:00:27]} Rxe5 {[%emt 0:00:43]} 61. Rc7+ {[%emt 0:00:03]} Kf6 {[%emt 0:00:17]} 62. Rxh7 {[%emt 0:00:10]} Re4+ {[%emt 0:00:31]} 63. Kf3 {[%emt 0:00:08]} Ra4 {[%emt 0:00:16] Ke4 Ke5+} 1/2-1/2

[Event "7th Iberoamerican-ch 2019"]
[Site "Linares"]
[Date "2019.08.14"]
[Round "5.34"]
[White "Guerrero Vargas, Andres Jesus"]
[Black "Martinez-Conde Hernandez, Carlos"]
[Result "1-0"]
[ECO "B35"]
[WhiteElo "2342"]
[BlackElo "2046"]
[Annotator "NA"]
[PlyCount "69"]
[EventDate "2019.08.10"]
[EventType "swiss"]
[EventCountry "ESP"]
[SourceTitle "playchess.com"]
[Source "ChessBase"]
[SourceQuality "1"]
[TimeControl "5400+30"]

1. e4 {[%emt 0:00:00]} c5 {[%emt 0:00:00]} 2. Nf3 {[%emt 0:00:00]} Nc6 {[%emt 0:00:00]} 3. Nc3 {[%emt 0:00:00]} g6 {[%emt 0:00:11]} 4. d4 {[%emt 0:00:03]} cxd4 {[%emt 0:00:04]} 5. Nxd4 {[%emt 0:00:00]} Bg7 {[%emt 0:00:00]} 6. Be3 {[%emt 0:00:00]} Nf6 {[%emt 0:00:00]} 7. Bc4 {[%emt 0:00:00]} O-O {[%emt 0:00:11]} 8. Bb3 {[%emt 0:00:00]} Re8 {[%emt 0:00:33]} 9. Qe2 {[%emt 0:00:00]} d6 {[%emt 0:09:52]} 10. f3 {[%emt 0:06:51]} e5 {[%emt 0:06:07]} 11. Nxc6 {[%emt 0:04:44]} bxc6 {[%emt 0:00:01]} 12. O-O-O {[%emt 0:17:37]} Qc7 {[%emt 0:02:00]} 13. Qd2 {[%emt 0:06:10]} Rd8 {[%emt 0:02:40]} 14. Bh6 {[%emt 0:01:29]} Be6 {[%emt 0:03:51]} 15. h4 {[%emt 0:02:49]} Nh5 {[%emt 0:04:20]} 16. Bxg7 {[%emt 0:04:38]} Kxg7 {[%emt 0:01:53]} 17. Ne2 {[%emt 0:07:36]} Bxb3 {[%emt 0:06:05]} 18. axb3 {[%emt 0:00:28]} d5 {[%emt 0:00:58]} 19. exd5 {[%emt 0:00:25]} Rxd5 {[%emt 0:01:49]} 20. Qc3 {[%emt 0:00:51]} Rad8 {[%emt 0:04:07]} 21. Rxd5 {[%emt 0:03:59]} Rxd5 {[%emt 0:00:02]} 22. b4 {[%emt 0:01:11]} a5 {[%emt 0:09:10]} 23. Kb1 {[%emt 0:07:33]} axb4 {[%emt 0:05:20]} 24. Qxb4 {[%emt 0:00:02]} Qd6 {[%emt 0:00:33]} 25. Qc3 {[%emt 0:04:57]} f6 {[%emt 0:09:19]} 26. Nc1 {[%emt 0:03:30]} Ng3 {[%emt 0:13:33]} 27. Rh3 {[%emt 0:00:48]} Nh5 {[%emt 0:00:01]} 28. g4 {[%emt 0:02:43]} Nf4 {[%emt 0:00:07]} 29. Rh1 {[%emt 0:00:01]} Rd1 {[%emt 0:02:32]} 30. Rxd1 {[%emt 0:00:10]} Qxd1 {[%emt 0:00:02]} 31. Qxc6 {[%emt 0:00:02]} Ne2 {[%emt 0:00:01]} 32. Qc7+ {[%emt 0:00:03]} Kh6 {[%emt 0:00:35]} 33. Qe7 {[%emt 0:03:11]} Qxc1+ {[%emt 0:02:38]} 34. Ka2 {[%emt 0:00:10]} Nc3+ {[%emt 0:00:02]} 35. Kb3 {[%emt 0:00:07]} 1-0